[Event "Early-Titled-Tuesday-Blitz-February-20-2024"]
[Site "Chess.com"]
[Date "2024.02.20"]
[Round "3"]
[White "Jakuboss22005"]
[Black "Flameboard08"]
[Result "0-1"]
[WhiteElo "2479"]
[BlackElo "2720"]
[TimeControl "180+1"]
[EndTime "8:29:24 PST"]
[Termination "Flameboard08 won on time"]

1. c3 {[%clk 0:02:58.8]} 1... b6 {[%clk 0:03:00.5]} 2. d4 {[%clk 0:02:58.6]}
2... Bb7 {[%clk 0:03:01.1]} 3. Nf3 {[%clk 0:02:58.9]} 3... e6 {[%clk 0:03:01.5]}
4. Bg5 {[%clk 0:02:59.1]} 4... Be7 {[%clk 0:03:01.1]} 5. Bxe7 {[%clk 0:02:59.2]}
5... Qxe7 {[%clk 0:03:02]} 6. Nbd2 {[%clk 0:02:59.4]} 6... d5 {[%clk 0:03:02.1]}
7. e3 {[%clk 0:02:59.4]} 7... Nf6 {[%clk 0:03:01.7]} 8. Bd3 {[%clk 0:02:59.8]}
8... Nbd7 {[%clk 0:03:01.8]} 9. O-O {[%clk 0:02:56.6]} 9... O-O {[%clk
0:03:01.4]} 10. Ne5 {[%clk 0:02:55]} 10... c5 {[%clk 0:02:56.7]} 11. f4 {[%clk
0:02:53.8]} 11... a5 {[%clk 0:02:47.9]} 12. Rf3 {[%clk 0:02:49.2]} 12... Ne4
{[%clk 0:02:36.6]} 13. Rh3 {[%clk 0:02:41.3]} 13... f5 {[%clk 0:02:17.7]} 14.
Nxd7 {[%clk 0:02:25.1]} 14... Qxd7 {[%clk 0:02:16.2]} 15. Nf3 {[%clk 0:02:25.6]}
15... Qe7 {[%clk 0:01:55]} 16. Ne5 {[%clk 0:02:21.8]} 16... Rf6 {[%clk
0:01:44.7]} 17. Qe2 {[%clk 0:02:06.7]} 17... a4 {[%clk 0:01:40.5]} 18. a3 {[%clk
0:02:02.4]} 18... h6 {[%clk 0:01:39.2]} 19. g4 {[%clk 0:01:46.2]} 19... g5
{[%clk 0:01:33.5]} 20. gxf5 {[%clk 0:01:41.7]} 20... exf5 {[%clk 0:01:33.5]} 21.
Bxe4 {[%clk 0:01:34.3]} 21... dxe4 {[%clk 0:01:25.8]} 22. fxg5 {[%clk 0:01:28]}
22... hxg5 {[%clk 0:01:23.9]} 23. Qh5 {[%clk 0:01:26.4]} 23... Qg7 {[%clk
0:01:23.7]} 24. Rg3 {[%clk 0:01:22.3]} 24... Rh6 {[%clk 0:00:33.2]} 25. Qxg5
{[%clk 0:01:21.7]} 25... Qxg5 {[%clk 0:00:32]} 26. Rxg5+ {[%clk 0:01:22.6]}
26... Kh7 {[%clk 0:00:29.4]} 27. Rf1 {[%clk 0:01:16.4]} 27... Bc8 {[%clk
0:00:23]} 28. Rf4 {[%clk 0:01:08.9]} 28... cxd4 {[%clk 0:00:21.6]} 29. Nf7
{[%clk 0:01:02.9]} 29... dxc3 {[%clk 0:00:03]} 30. bxc3 {[%clk 0:01:00.7]} 30...
Be6 {[%clk 0:00:02.1]} 31. Nxh6 {[%clk 0:01:00.3]} 31... Kxh6 {[%clk 0:00:03]}
32. Rg3 {[%clk 0:00:56.8]} 32... Kh5 {[%clk 0:00:03.5]} 33. Rg7 {[%clk
0:00:49.9]} 33... Rc8 {[%clk 0:00:02.9]} 34. Re7 {[%clk 0:00:39.2]} 34... Rc6
{[%clk 0:00:03.1]} 35. Kg2 {[%clk 0:00:34.7]} 35... Kg5 {[%clk 0:00:03.2]} 36.
Kg3 {[%clk 0:00:33.4]} 36... Kf6 {[%clk 0:00:03.8]} 37. Rb7 {[%clk 0:00:09]}
37... Rxc3 {[%clk 0:00:04.1]} 38. Kf2 {[%clk 0:00:09.5]} 38... Rc2+ {[%clk
0:00:03.7]} 39. Kg3 {[%clk 0:00:09.5]} 39... Rc3 {[%clk 0:00:03.8]} 40. Kf2
{[%clk 0:00:09.9]} 40... Rxa3 {[%clk 0:00:04.1]} 41. Rxb6 {[%clk 0:00:09.9]}
41... Ra2+ {[%clk 0:00:04.5]} 42. Kg3 {[%clk 0:00:10.4]} 42... Re2 {[%clk
0:00:04.2]} 43. Rh4 {[%clk 0:00:07.8]} 43... Ke5 {[%clk 0:00:03.2]} 44. Rh6
{[%clk 0:00:05.9]} 44... Rxe3+ {[%clk 0:00:02.7]} 45. Kf2 {[%clk 0:00:06.2]}
45... Rf3+ {[%clk 0:00:03.3]} 46. Kg2 {[%clk 0:00:06.8]} 46... Bd5 {[%clk
0:00:02.9]} 47. Ra6 {[%clk 0:00:05.1]} 47... a3 {[%clk 0:00:02.8]} 48. Rh8
{[%clk 0:00:03]} 48... e3 {[%clk 0:00:02.6]} 49. Re8+ {[%clk 0:00:02.6]} 49...
Kd4 {[%clk 0:00:01.9]} 50. Kg1 {[%clk 0:00:02.5]} 50... Rf2 {[%clk 0:00:01.9]}
51. Rxa3 {[%clk 0:00:01.2]} 51... f4 {[%clk 0:00:02.4]} 0-1

[Event "Early-Titled-Tuesday-Blitz-February-20-2024"]
[Site "Chess.com"]
[Date "2024.02.20"]
[Round "3"]
[White "tusplingher"]
[Black "Resignify"]
[Result "1/2-1/2"]
[WhiteElo "2481"]
[BlackElo "2218"]
[TimeControl "180+1"]
[EndTime "8:29:27 PST"]
[Termination "Game drawn by repetition"]

1. e4 {[%clk 0:03:00.9]} 1... d6 {[%clk 0:02:59.7]} 2. d4 {[%clk 0:02:59.7]}
2... Nf6 {[%clk 0:02:59.5]} 3. Nc3 {[%clk 0:03:00]} 3... g6 {[%clk 0:02:59.5]}
4. Bc4 {[%clk 0:02:59.9]} 4... c6 {[%clk 0:02:57.5]} 5. Nf3 {[%clk 0:02:59.2]}
5... d5 {[%clk 0:02:57.5]} 6. exd5 {[%clk 0:02:59.3]} 6... cxd5 {[%clk
0:02:58.4]} 7. Bb5+ {[%clk 0:03:00]} 7... Bd7 {[%clk 0:02:55.6]} 8. Bxd7+ {[%clk
0:03:00]} 8... Nbxd7 {[%clk 0:02:55.8]} 9. O-O {[%clk 0:03:00.9]} 9... Bg7
{[%clk 0:02:55.4]} 10. Bf4 {[%clk 0:02:59.7]} 10... O-O {[%clk 0:02:53]} 11. Re1
{[%clk 0:02:59.6]} 11... a6 {[%clk 0:02:50.4]} 12. a4 {[%clk 0:02:59]} 12... b6
{[%clk 0:02:47.6]} 13. Ra3 {[%clk 0:02:58.5]} 13... Re8 {[%clk 0:02:41.6]} 14.
Rb3 {[%clk 0:02:58]} 14... e6 {[%clk 0:02:35.9]} 15. h3 {[%clk 0:02:51.8]} 15...
Bf8 {[%clk 0:02:34.7]} 16. Ne5 {[%clk 0:02:50.2]} 16... Nxe5 {[%clk 0:02:33.4]}
17. Bxe5 {[%clk 0:02:50]} 17... Nd7 {[%clk 0:02:32]} 18. Bg3 {[%clk 0:02:48.8]}
18... Nb8 {[%clk 0:02:31.3]} 19. Ne2 {[%clk 0:02:47.3]} 19... Nc6 {[%clk
0:02:28.5]} 20. Nf4 {[%clk 0:02:46.7]} 20... Bg7 {[%clk 0:02:19.3]} 21. c3
{[%clk 0:02:46.2]} 21... Na5 {[%clk 0:02:13.6]} 22. Ra3 {[%clk 0:02:46.4]} 22...
Nc4 {[%clk 0:02:13.2]} 23. Ra2 {[%clk 0:02:46.6]} 23... b5 {[%clk 0:02:04.1]}
24. axb5 {[%clk 0:02:45.5]} 24... axb5 {[%clk 0:02:03.9]} 25. Rxa8 {[%clk
0:02:45.6]} 25... Qxa8 {[%clk 0:02:02.7]} 26. Nd3 {[%clk 0:02:42]} 26... Qa2
{[%clk 0:01:51.6]} 27. Re2 {[%clk 0:02:30.4]} 27... Qa7 {[%clk 0:01:37.2]} 28.
Nb4 {[%clk 0:02:23.8]} 28... Ra8 {[%clk 0:01:33]} 29. Kh2 {[%clk 0:02:12.8]}
29... h5 {[%clk 0:01:29.4]} 30. h4 {[%clk 0:02:09.1]} 30... Bf6 {[%clk
0:01:25.3]} 31. b3 {[%clk 0:02:04.3]} 31... Nb6 {[%clk 0:01:23.3]} 32. Ra2
{[%clk 0:02:01.6]} 32... Qb7 {[%clk 0:01:21.5]} 33. Qa1 {[%clk 0:01:58]} 33...
Be7 {[%clk 0:01:15.5]} 34. Rxa8+ {[%clk 0:01:56.4]} 34... Qxa8 {[%clk
0:01:15.4]} 35. Qxa8+ {[%clk 0:01:54.5]} 35... Nxa8 {[%clk 0:01:16.3]} 36. Nc6
{[%clk 0:01:52.8]} 36... Kf8 {[%clk 0:01:15.4]} 37. Kh3 {[%clk 0:01:33.3]} 37...
Ke8 {[%clk 0:01:15.3]} 38. Bf4 {[%clk 0:01:32.7]} 38... Nb6 {[%clk 0:01:11.3]}
39. Kg3 {[%clk 0:01:26.3]} 39... Nd7 {[%clk 0:01:05]} 40. b4 {[%clk 0:01:17.1]}
40... Nb6 {[%clk 0:00:45.3]} 41. Na7 {[%clk 0:01:16.4]} 41... Na4 {[%clk
0:00:45]} 42. Nxb5 {[%clk 0:01:16.6]} 42... Kd7 {[%clk 0:00:44.2]} 43. Bd2
{[%clk 0:01:16.3]} 43... Kc6 {[%clk 0:00:40]} 44. Na3 {[%clk 0:01:15.9]} 44...
Nb2 {[%clk 0:00:33.2]} 45. Nc2 {[%clk 0:00:54.4]} 45... Kb5 {[%clk 0:00:32.7]}
46. Ne3 {[%clk 0:00:54.1]} 46... Ka4 {[%clk 0:00:31.9]} 47. Kf4 {[%clk
0:00:52.7]} 47... Bxh4 {[%clk 0:00:28.9]} 48. g3 {[%clk 0:00:47.5]} 48... Be7
{[%clk 0:00:27]} 49. Kf3 {[%clk 0:00:39.3]} 49... Kb3 {[%clk 0:00:19.5]} 50. Ke2
{[%clk 0:00:37.6]} 50... g5 {[%clk 0:00:11.6]} 51. Ng2 {[%clk 0:00:26.2]} 51...
h4 {[%clk 0:00:10.4]} 52. gxh4 {[%clk 0:00:25.8]} 52... gxh4 {[%clk 0:00:10.9]}
53. Ne3 {[%clk 0:00:22.8]} 53... Na4 {[%clk 0:00:07.3]} 54. Kd3 {[%clk
0:00:18.9]} 54... Nb2+ {[%clk 0:00:07.6]} 55. Ke2 {[%clk 0:00:19.1]} 55... Na4
{[%clk 0:00:08.5]} 56. Kd3 {[%clk 0:00:19.5]} 56... Nb2+ {[%clk 0:00:08.8]} 57.
Ke2 {[%clk 0:00:19.6]} 1/2-1/2

[Event "Early-Titled-Tuesday-Blitz-February-20-2024"]
[Site "Chess.com"]
[Date "2024.02.20"]
[Round "3"]
[White "CM_rui"]
[Black "rezamahdavi2008"]
[Result "1-0"]
[WhiteElo "2592"]
[BlackElo "2830"]
[TimeControl "180+1"]
[EndTime "8:29:31 PST"]
[Termination "CM_rui won on time"]

1. e4 {[%clk 0:02:59.6]} 1... c5 {[%clk 0:03:00.4]} 2. Nf3 {[%clk 0:02:57.5]}
2... d6 {[%clk 0:03:00.9]} 3. c3 {[%clk 0:02:57.4]} 3... Nf6 {[%clk 0:02:59.1]}
4. Be2 {[%clk 0:02:58]} 4... g6 {[%clk 0:02:55.2]} 5. O-O {[%clk 0:02:58.2]}
5... Bg7 {[%clk 0:02:55.8]} 6. Bb5+ {[%clk 0:02:58.4]} 6... Bd7 {[%clk
0:02:55.1]} 7. Bxd7+ {[%clk 0:02:58.8]} 7... Nbxd7 {[%clk 0:02:54.5]} 8. Re1
{[%clk 0:02:59.7]} 8... O-O {[%clk 0:02:54.6]} 9. d4 {[%clk 0:02:59.9]} 9...
cxd4 {[%clk 0:02:55.3]} 10. cxd4 {[%clk 0:03:00.8]} 10... d5 {[%clk 0:02:56.1]}
11. e5 {[%clk 0:03:00.7]} 11... Ne4 {[%clk 0:02:56.7]} 12. Nc3 {[%clk
0:03:01.3]} 12... Nxc3 {[%clk 0:02:56.2]} 13. bxc3 {[%clk 0:03:02.2]} 13... Qc7
{[%clk 0:02:56.4]} 14. Qd3 {[%clk 0:02:57.9]} 14... Rfc8 {[%clk 0:02:52.8]} 15.
Bd2 {[%clk 0:02:45.7]} 15... e6 {[%clk 0:02:52.6]} 16. h4 {[%clk 0:02:44.2]}
16... Qc4 {[%clk 0:02:51.2]} 17. Qc2 {[%clk 0:02:39.1]} 17... b5 {[%clk
0:02:49.8]} 18. Qb2 {[%clk 0:02:29]} 18... a5 {[%clk 0:02:49.8]} 19. Reb1 {[%clk
0:02:21.7]} 19... Rab8 {[%clk 0:02:49.4]} 20. h5 {[%clk 0:02:08.6]} 20... Bf8
{[%clk 0:02:45.3]} 21. a3 {[%clk 0:02:04.2]} 21... Qd3 {[%clk 0:02:37.9]} 22.
Rd1 {[%clk 0:01:54.3]} 22... Nb6 {[%clk 0:02:28.1]} 23. hxg6 {[%clk 0:01:51.6]}
23... hxg6 {[%clk 0:02:27.5]} 24. Bg5 {[%clk 0:01:39.7]} 24... Qxc3 {[%clk
0:02:27.1]} 25. Qxb5 {[%clk 0:01:33.8]} 25... Nc4 {[%clk 0:02:20.9]} 26. Qd7
{[%clk 0:01:29]} 26... Bxa3 {[%clk 0:01:59.1]} 27. Bh6 {[%clk 0:01:15.2]} 27...
Nb6 {[%clk 0:01:58.6]} 28. Qa7 {[%clk 0:01:06.6]} 28... Bb4 {[%clk 0:01:29.9]}
29. Rac1 {[%clk 0:00:52.4]} 29... Qb3 {[%clk 0:01:28.9]} 30. Ng5 {[%clk
0:00:46.4]} 30... Rf8 {[%clk 0:01:05.9]} 31. Bxf8 {[%clk 0:00:46.1]} 31... Rxf8
{[%clk 0:01:06.8]} 32. Qxb6 {[%clk 0:00:45.5]} 32... Qb2 {[%clk 0:00:54.7]} 33.
Nf3 {[%clk 0:00:36.2]} 33... Qe2 {[%clk 0:00:51.3]} 34. Rf1 {[%clk 0:00:31.7]}
34... Kg7 {[%clk 0:00:49]} 35. Qc7 {[%clk 0:00:26.6]} 35... Qe4 {[%clk
0:00:46.4]} 36. Qc2 {[%clk 0:00:22.1]} 36... Qf4 {[%clk 0:00:45.1]} 37. Rb1
{[%clk 0:00:16.3]} 37... Rh8 {[%clk 0:00:45]} 38. Qc1 {[%clk 0:00:16]} 38... Qe4
{[%clk 0:00:36.6]} 39. Qg5 {[%clk 0:00:15.5]} 39... Rf8 {[%clk 0:00:21.3]} 40.
Qf6+ {[%clk 0:00:13.5]} 40... Kg8 {[%clk 0:00:21.7]} 41. Rbc1 {[%clk 0:00:09.1]}
41... a4 {[%clk 0:00:20.3]} 42. Rb1 {[%clk 0:00:07.5]} 42... Bc3 {[%clk
0:00:14.9]} 43. Rb7 {[%clk 0:00:05.3]} 43... Bxd4 {[%clk 0:00:10.2]} 44. Nxd4
{[%clk 0:00:01.9]} 44... Qxd4 {[%clk 0:00:11.1]} 45. Rfb1 {[%clk 0:00:02.3]}
45... Kh7 {[%clk 0:00:04.3]} 46. Rxf7+ {[%clk 0:00:02.5]} 46... Rxf7 {[%clk
0:00:04.7]} 47. Qxf7+ {[%clk 0:00:03.4]} 47... Kh6 {[%clk 0:00:05.6]} 48. Qf6
{[%clk 0:00:04.1]} 48... a3 {[%clk 0:00:05.6]} 49. Qh8+ {[%clk 0:00:04.1]} 49...
Kg5 {[%clk 0:00:05.8]} 50. Qf6+ {[%clk 0:00:04.7]} 50... Kh6 {[%clk 0:00:06.5]}
51. Kh2 {[%clk 0:00:04.7]} 51... Qa7 {[%clk 0:00:04.7]} 52. Rb3 {[%clk 0:00:05]}
1-0

[Event "Early-Titled-Tuesday-Blitz-February-20-2024"]
[Site "Chess.com"]
[Date "2024.02.20"]
[Round "3"]
[White "GOGIEFF"]
[Black "Fighterman91"]
[Result "0-1"]
[WhiteElo "3016"]
[BlackElo "2778"]
[TimeControl "180+1"]
[EndTime "8:29:32 PST"]
[Termination "Fighterman91 won on time"]

1. c4 {[%clk 0:03:00.9]} 1... e5 {[%clk 0:02:59.9]} 2. d3 {[%clk 0:03:00.4]}
2... f5 {[%clk 0:02:57.4]} 3. g3 {[%clk 0:02:56.4]} 3... Nf6 {[%clk 0:02:57.7]}
4. Bg2 {[%clk 0:02:56.6]} 4... Bb4+ {[%clk 0:02:55.2]} 5. Nd2 {[%clk 0:02:53.6]}
5... O-O {[%clk 0:02:53.7]} 6. a3 {[%clk 0:02:44.8]} 6... Bxd2+ {[%clk 0:02:39]}
7. Qxd2 {[%clk 0:02:42.3]} 7... d6 {[%clk 0:02:39.9]} 8. Nf3 {[%clk 0:02:39.1]}
8... Nc6 {[%clk 0:02:39.5]} 9. O-O {[%clk 0:02:36]} 9... a5 {[%clk 0:02:20.6]}
10. b3 {[%clk 0:02:35.7]} 10... Qe8 {[%clk 0:02:21.3]} 11. Bb2 {[%clk
0:02:35.9]} 11... f4 {[%clk 0:02:21.8]} 12. gxf4 {[%clk 0:02:18.6]} 12... Nh5
{[%clk 0:01:50.8]} 13. e3 {[%clk 0:02:16.2]} 13... exf4 {[%clk 0:01:48.7]} 14.
Rae1 {[%clk 0:01:56.4]} 14... Qg6 {[%clk 0:01:29.7]} 15. Kh1 {[%clk 0:01:53.6]}
15... Bg4 {[%clk 0:01:22.7]} 16. h3 {[%clk 0:01:43.4]} 16... fxe3 {[%clk
0:01:12.4]} 17. Rxe3 {[%clk 0:01:38.3]} 17... Bd7 {[%clk 0:00:51.7]} 18. Rg1
{[%clk 0:01:31.4]} 18... Qh6 {[%clk 0:00:44.1]} 19. Ng5 {[%clk 0:01:10.2]} 19...
Nf4 {[%clk 0:00:15.5]} 20. Bxc6 {[%clk 0:00:57]} 20... Bxc6+ {[%clk 0:00:14.9]}
21. Kh2 {[%clk 0:00:57.5]} 21... Ng6 {[%clk 0:00:05.2]} 22. Ne6 {[%clk
0:00:44.5]} 22... Rf7 {[%clk 0:00:04.7]} 23. d4 {[%clk 0:00:37.7]} 23... Re8
{[%clk 0:00:04.2]} 24. d5 {[%clk 0:00:37.9]} 24... Bd7 {[%clk 0:00:04.9]} 25.
Qd4 {[%clk 0:00:33.4]} 25... Bxe6 {[%clk 0:00:02.4]} 26. dxe6 {[%clk 0:00:29.9]}
26... Rf6 {[%clk 0:00:02.8]} 27. e7 {[%clk 0:00:19.9]} 27... Rxf2+ {[%clk
0:00:03.1]} 28. Rg2 {[%clk 0:00:18]} 28... Qf4+ {[%clk 0:00:03.4]} 29. Qxf4
{[%clk 0:00:17]} 29... Rxg2+ {[%clk 0:00:04]} 30. Kxg2 {[%clk 0:00:16.4]} 30...
Nxf4+ {[%clk 0:00:04.9]} 31. Kf3 {[%clk 0:00:17]} 31... Ng6 {[%clk 0:00:05.8]}
32. c5 {[%clk 0:00:16.6]} 32... dxc5 {[%clk 0:00:05.9]} 33. Rc3 {[%clk
0:00:16.7]} 33... b6 {[%clk 0:00:06.3]} 34. b4 {[%clk 0:00:17.2]} 34... axb4
{[%clk 0:00:05.9]} 35. axb4 {[%clk 0:00:18.1]} 35... Rxe7 {[%clk 0:00:06]} 36.
bxc5 {[%clk 0:00:17.4]} 36... bxc5 {[%clk 0:00:06.7]} 37. Rxc5 {[%clk
0:00:17.5]} 37... Kf7 {[%clk 0:00:06.7]} 38. Bc3 {[%clk 0:00:16.1]} 38... Ke6
{[%clk 0:00:06.9]} 39. Ba5 {[%clk 0:00:15.5]} 39... Kd6 {[%clk 0:00:06.8]} 40.
Bb4 {[%clk 0:00:15.7]} 40... Rf7+ {[%clk 0:00:07.4]} 41. Ke4 {[%clk 0:00:15.2]}
41... Ke6 {[%clk 0:00:08]} 42. Ke3 {[%clk 0:00:12.7]} 42... Kd7 {[%clk
0:00:07.4]} 43. Rd5+ {[%clk 0:00:12.6]} 43... Kc6 {[%clk 0:00:07.7]} 44. Rc5+
{[%clk 0:00:12.4]} 44... Kb6 {[%clk 0:00:08.3]} 45. Rg5 {[%clk 0:00:12.1]} 45...
Ne7 {[%clk 0:00:07.4]} 46. Bc5+ {[%clk 0:00:10]} 46... Kc6 {[%clk 0:00:07.7]}
47. Ba3 {[%clk 0:00:10.5]} 47... Nf5+ {[%clk 0:00:07.2]} 48. Kd3 {[%clk
0:00:08.5]} 48... g6 {[%clk 0:00:07.6]} 49. Bb2 {[%clk 0:00:07.4]} 49... Rd7+
{[%clk 0:00:08.2]} 50. Ke2 {[%clk 0:00:07.2]} 50... Kd5 {[%clk 0:00:08.2]} 51.
h4 {[%clk 0:00:07]} 51... Ke4 {[%clk 0:00:08.8]} 52. Rg4+ {[%clk 0:00:06.7]}
52... Kd5 {[%clk 0:00:08.3]} 53. h5 {[%clk 0:00:07.2]} 53... gxh5 {[%clk
0:00:07.1]} 54. Rg5 {[%clk 0:00:07.2]} 54... Ke4 {[%clk 0:00:07.8]} 55. Rxh5
{[%clk 0:00:07.3]} 55... Ng3+ {[%clk 0:00:08]} 0-1

[Event "Early-Titled-Tuesday-Blitz-February-20-2024"]
[Site "Chess.com"]
[Date "2024.02.20"]
[Round "3"]
[White "Mikhail_Golubev"]
[Black "DarZay"]
[Result "0-1"]
[WhiteElo "2638"]
[BlackElo "2308"]
[TimeControl "180+1"]
[EndTime "8:29:34 PST"]
[Termination "DarZay won on time"]

1. e4 {[%clk 0:03:00.9]} 1... c5 {[%clk 0:02:39.3]} 2. Nf3 {[%clk 0:03:00.3]}
2... Nc6 {[%clk 0:02:39.1]} 3. Nc3 {[%clk 0:02:59.7]} 3... g6 {[%clk 0:02:38.6]}
4. d4 {[%clk 0:02:59.4]} 4... cxd4 {[%clk 0:02:38.7]} 5. Nxd4 {[%clk 0:02:59.7]}
5... Bg7 {[%clk 0:02:38.8]} 6. Be3 {[%clk 0:02:59.7]} 6... d6 {[%clk 0:02:34.2]}
7. f3 {[%clk 0:02:52]} 7... Nf6 {[%clk 0:02:25.6]} 8. Qd2 {[%clk 0:02:51.9]}
8... O-O {[%clk 0:02:23.8]} 9. O-O-O {[%clk 0:02:51]} 9... Nd7 {[%clk
0:02:19.8]} 10. h4 {[%clk 0:02:33.3]} 10... Qa5 {[%clk 0:02:19.2]} 11. h5 {[%clk
0:02:20.8]} 11... gxh5 {[%clk 0:02:14]} 12. Kb1 {[%clk 0:02:09.5]} 12... Nc5
{[%clk 0:02:04.7]} 13. Nxc6 {[%clk 0:00:54.2]} 13... bxc6 {[%clk 0:02:04.6]} 14.
Rxh5 {[%clk 0:00:51]} 14... Be6 {[%clk 0:01:56.3]} 15. Bd4 {[%clk 0:00:39.5]}
15... f6 {[%clk 0:01:09.1]} 16. Be2 {[%clk 0:00:24.2]} 16... Rfb8 {[%clk
0:01:06.6]} 17. Rdh1 {[%clk 0:00:21.6]} 17... Bxa2+ {[%clk 0:01:06.1]} 18. Kc1
{[%clk 0:00:18.3]} 18... Qb4 {[%clk 0:00:45.9]} 19. Nd1 {[%clk 0:00:13]} 19...
Qxd2+ {[%clk 0:00:39.6]} 20. Kxd2 {[%clk 0:00:13.9]} 20... h6 {[%clk 0:00:39.4]}
21. b3 {[%clk 0:00:13.6]} 21... Bxb3 {[%clk 0:00:35.4]} 22. cxb3 {[%clk
0:00:13.6]} 22... Nxb3+ {[%clk 0:00:35.7]} 23. Ke3 {[%clk 0:00:13.2]} 23... Nxd4
{[%clk 0:00:27.6]} 24. Kxd4 {[%clk 0:00:14.1]} 24... f5+ {[%clk 0:00:28.2]} 25.
Ke3 {[%clk 0:00:13.8]} 25... fxe4 {[%clk 0:00:28.3]} 26. fxe4 {[%clk 0:00:13.4]}
26... Rb3+ {[%clk 0:00:28.4]} 27. Kf2 {[%clk 0:00:12.9]} 27... a5 {[%clk
0:00:23]} 28. R1h3 {[%clk 0:00:11.8]} 28... Rxh3 {[%clk 0:00:22]} 29. Rxh3
{[%clk 0:00:11]} 29... a4 {[%clk 0:00:21.1]} 30. Bc4+ {[%clk 0:00:11]} 30... Kh7
{[%clk 0:00:21]} 31. Ra3 {[%clk 0:00:10.6]} 31... Bd4+ {[%clk 0:00:20.9]} 32.
Ke2 {[%clk 0:00:09.9]} 32... Bc5 {[%clk 0:00:21]} 33. Ra2 {[%clk 0:00:09.1]}
33... a3 {[%clk 0:00:21.4]} 34. Ne3 {[%clk 0:00:09]} 34... Rb8 {[%clk
0:00:19.1]} 35. Nc2 {[%clk 0:00:07.4]} 35... Rb2 {[%clk 0:00:17.4]} 36. Rxb2
{[%clk 0:00:07.4]} 36... axb2 {[%clk 0:00:17.4]} 37. Ba2 {[%clk 0:00:08.1]}
37... d5 {[%clk 0:00:16]} 38. exd5 {[%clk 0:00:07.3]} 38... cxd5 {[%clk
0:00:16.6]} 39. Bb1 {[%clk 0:00:07.1]} 39... Kg7 {[%clk 0:00:15.4]} 40. Ne1
{[%clk 0:00:07]} 40... e5 {[%clk 0:00:15.5]} 41. Nd3 {[%clk 0:00:06.8]} 41...
Bd4 {[%clk 0:00:15.3]} 42. Nb4 {[%clk 0:00:06.5]} 42... Kf6 {[%clk 0:00:13.7]}
43. Nxd5+ {[%clk 0:00:07.2]} 43... Kg5 {[%clk 0:00:14]} 44. Kf3 {[%clk
0:00:05.5]} 44... h5 {[%clk 0:00:13.4]} 45. Nc7 {[%clk 0:00:04.6]} 45... Bc3
{[%clk 0:00:12.5]} 46. Ne6+ {[%clk 0:00:03.8]} 46... Kf6 {[%clk 0:00:12.4]} 47.
Nc5 {[%clk 0:00:04.3]} 47... Ke7 {[%clk 0:00:10.8]} 48. Ne4 {[%clk 0:00:04]}
48... Bd4 {[%clk 0:00:11.3]} 49. Ng3 {[%clk 0:00:03.4]} 49... h4 {[%clk
0:00:11.4]} 50. Nf5+ {[%clk 0:00:03.2]} 50... Kf6 {[%clk 0:00:11.2]} 51. Nxh4
{[%clk 0:00:02.5]} 51... Kg5 {[%clk 0:00:11.5]} 52. g3 {[%clk 0:00:02.8]} 52...
Bc3 {[%clk 0:00:09.2]} 53. Ng2 {[%clk 0:00:02]} 53... Kh5 {[%clk 0:00:07.2]} 54.
Ne3 {[%clk 0:00:01.5]} 54... Be1 {[%clk 0:00:06.3]} 55. Nf1 {[%clk 0:00:01.1]}
55... Bxg3 {[%clk 0:00:05.4]} 0-1